Cogmind - Beta 15 @@@ ROGUE MODE // 2025.06.10 @ 19:03:05 Player: Demo Result: Destroyed by G-73 Enforcer with Heavy Laser Performance ------------- Evolutions (9) 4500 Regions Visited (20) 4000 Robots Destroyed (307) 1535 Value Destroyed (13660) 13660 Prototype IDs (50) 1000 Alien Tech Used (0) 0 Bonus (8903) 8903 TOTAL SCORE: 33598 Bonus ------- High Alert Combat Kills 2639 Follower Combat Kills 2405 Entered DSFs 1000 Aligned with FarCom 300 Built Enhanced Grunts 300 Met R17 at Cetus 500 Met R17 at Research 2000 Friendly Fire -241 Cogmind --------- Core Integrity 0/1600 Matter 161/300 Energy 90/100 System Corruption 36% Temperature Cool (9) Movement Core (50) Location -1/Access Parts ------- > --- POWER (2) -------- (None) > --- PROPULSION (6) --- (None) > --- UTILITY (11) ----- Advanced Targeting Computer Advanced Target Analyzer Advanced Target Analyzer System Shield Advanced System Shield > --- WEAPON (6) ------- (None) > --- INVENTORY (5) ---- Stasis Canceller Enhanced Hardcell Cannon Improved Plasma Cutter Molecular Scythe Molecular Scythe Peak State ------------ > --- POWER ------------ Particle Reactor Light Quantum Reactor > --- PROPULSION ------- Biometal Medium Treads Biometal Medium Treads Biometal Medium Treads Biometal Medium Treads > --- UTILITY ---------- Advanced Cooling System Large Storage Unit Experimental Sensor Array Modified TNC Advanced Targeting Computer Weapon Mount Improved Kinecellerator Improved Weapon Cycler Improved Weapon Cycler Experimental Transmission Jammer Centrium Medium Armor Plating > --- WEAPON ----------- Quantum Rifle Enhanced Quantum Rifle Heavy Phase Cannon Hypervelocity Railgun Compact Mass Driver Compact Mass Driver > --- INVENTORY -------- Quantum Reactor Biometal Medium Treads Biometal Medium Treads Centrium Heavy Treads Advanced Cryofiber Web Experimental Energy Well Centrium Medium Armor Plating Centrium Medium Armor Plating Chronowheel Quantum Rifle KE Penetrator Compact Mass Driver Improved Grenade Launcher Improved Plasma Cutter [Rating: 177] Favorites ----------- Power Heavy Ion Engine Engine Heavy Ion Engine Power Core Light Nuclear Core Reactor Quantum Reactor Propulsion Wheel Treads Biometal Medium Treads Leg Myomer Leg Wheel Wheel Hover Unit Improved Antigrav System Flight Unit Advanced Surge Thruster Utility Large Storage Unit Device Advanced Heat Sink Storage Large Storage Unit Processor Improved Targeting Computer Hackware Advanced System Shield Protection Medium Armor Plating Weapon KE Penetrator Energy Gun Gamma Rifle Energy Cannon Beam Cannon Ballistic Gun KE Penetrator Ballistic Cannon Advanced Assault Cannon Launcher Improved Grenade Launcher Special Weapon Advanced Remote Datajack Slashing Weapon Dual-blade Saw Build | -11 -10 -10 -10 -9 -8 -8 -8 -8 -6 -6 -5 -5 -5 -5 -5 -4 -4 -3 -2 -1 ------- Run | Yrd Mat Min Exi Min Mat Sto Rec Scr Fac DSF Fac Ext Cet Arc Hub Fac DSF Res Res Acc Slots Evolved 18 | . . . . . 4 . . . 4 . 2 . . . . 2 . 2 2 2 Power 1 | . . . . . . . . . . . . . . . . . . . 1 . Propulsion 4 | . . . . . . . . . 1 . 1 . . . . . . . . 2 Utility 9 | . . . . . 4 . . . . . 1 . . . . 1 . 2 1 . Weapon 4 | . . . . . . . . . 3 . . . . . . 1 . . . . Parts Attached 340 | 7 11 6 . 2 31 22 3 . . 11 6 40 13 3 5 2 21 14 42 101 Power 27 | 1 1 2 . . 1 3 . . . . . 1 2 . . . . 1 5 10 Engine 7 | 1 1 1 . . . 3 . . . . . . . . . . . . . 1 Core 2 | . . 1 . . 1 . . . . . . . . . . . . . . . Reactor 18 | . . . . . . . . . . . . 1 2 . . . . 1 5 9 Propulsion 71 | 2 5 1 . . 5 4 . . . 3 1 2 3 . 2 . 5 1 8 29 Treads 23 | . 1 1 . . 1 . . . . 3 1 2 3 . 2 . 5 1 2 1 Leg 5 | . . . . . . . . . . . . . . . . . . . 5 . Wheel 12 | 2 4 . . . 4 1 . . . . . . . . . . . . 1 . Hover 21 | . . . . . . 1 . . . . . . . . . . . . . 20 Flight 10 | . . . . . . 2 . . . . . . . . . . . . . 8 Utility 129 | 2 2 2 . 1 16 8 1 . . 3 3 24 4 1 3 1 6 4 15 33 Device 67 | 1 . . . 1 6 1 1 . . 2 3 12 . 1 2 . 5 3 9 20 Storage 6 | 1 1 . . . . . . . . . . . . . . . 1 1 . 2 Processor 16 | . . . . . 1 1 . . . 1 . 1 . . 1 1 . . 5 5 Hackware 4 | . . . . . . 1 . . . . . . . . . . . . 1 2 Protection 36 | . 1 2 . . 9 5 . . . . . 11 4 . . . . . . 4 Artifact . | . . . . . . . . . . . . . . . . . . . . . Weapon 113 | 2 3 1 . 1 9 7 2 . . 5 2 13 4 2 . 1 10 8 14 29 Energy Gun 46 | 1 . 1 . . 1 3 1 . . 1 . 6 1 . . 1 2 2 7 19 Energy Cannon 8 | . 1 . . . 1 1 . . . . . 1 . . . . . 3 . 1 Ballistic Gun 30 | 1 1 . . . 1 1 1 . . 3 1 3 3 2 . . 4 2 4 3 Ballistic Cannon 15 | . 1 . . . 3 . . . . . 1 3 . . . . 2 1 3 1 Launcher 7 | . . . . 1 3 2 . . . . . . . . . . 1 . . . Special Weapon 3 | . . . . . . . . . . 1 . . . . . . 1 . . 1 Impact Weapon . | . . . . . . . . . . . . . . . . . . . . . Slashing Weapon 4 | . . . . . . . . . . . . . . . . . . . . 4 Piercing Weapon . | . . . . . . . . . . . . . . . . . . . . . Special Melee Weapon . | . . . . . . . . . . . . . . . . . . . . . Unidentified Prototypes 22 | . . . . 1 1 11 . . . . . . 4 . . . . 2 1 2 Corrupted Parts 9 | . . . . . . . . . . . . 4 4 . . . . . . 1 System Corruption 48 | . . . . . . . . . . . . 23 24 . . . . . . 1 Parts Lost 131 | . 1 1 . 1 10 2 . . . . 1 5 1 . 4 . 4 . 46 55 Power 10 | . . . . . 1 . . . . . . . . . . . . . 4 5 Propulsion 33 | . . . . . 3 . . . . . . . . . . . . . 11 19 Utility 44 | . . 1 . . 2 2 . . . . 1 2 . . . . 2 . 17 17 Weapon 44 | . 1 . . 1 4 . . . . . . 3 1 . 4 . 2 . 14 14 Highest Loss Streak 21 | . 1 1 . 1 7 1 . . . . 1 3 1 . 3 . 3 . 21 15 To Critical Strikes 1 | . . . . . . . . . . . . . 1 . . . . . . . Average Backups 12 | 2 10 14 14 14 14 15 15 14 15 14 14 14 14 14 13 13 13 13 11 4 Power . | . . . . . . . 1 1 1 . . . 1 1 1 1 1 1 . . Propulsion 1 | 2 4 5 5 5 2 1 . . . . 1 1 . 1 1 2 2 3 2 . Utility 5 | . 4 7 7 6 7 7 6 6 6 6 5 6 6 6 6 6 7 6 3 1 Weapon 2 | . 1 2 2 1 4 5 6 6 5 4 4 3 3 3 2 1 . 1 2 . Tool/Special . | . . . . . . . . . . . . . . . . . . . . . Unused Backups 41 | . 7 . 1 . 11 1 . 1 . . . 1 3 . . 1 1 3 4 7 Power 4 | . . . . . . . . . . . . 1 1 . . . . . 1 1 Propulsion 11 | . 5 . . . 4 . . . . . . . . . . . . 1 . 1 Utility 14 | . 2 . 1 . 3 . . 1 . . . . 2 . . 1 1 2 . 1 Weapon 9 | . . . . . 4 1 . . . . . . . . . . . . 1 3 Tool/Special 3 | . . . . . . . . . . . . . . . . . . . 2 1 Average Slot Usage (%) 90 | . 99 99 100 99 92 97 95 84 73 91 85 86 88 87 85 74 91 99 87 79 Engine 3 | . 14 2 . . . 3 9 9 6 6 5 4 . . . . . . . . Core 2 | . . 11 14 14 7 5 . . . . . . . . . . . . . . Reactor 2 | . . . . . . . . . . . . . 5 5 5 5 5 4 7 6 Treads 9 | . 11 14 14 15 2 8 9 9 6 9 10 11 11 11 11 15 15 19 12 . Wheel 5 | . 16 13 14 12 14 9 9 9 6 4 . . . . . . . . . . Hover 2 | . . . . . . . . . . . . . . . . . . . . 15 Device 13 | . 6 1 14 5 14 8 17 18 13 15 15 12 11 11 10 10 19 27 24 13 Storage 6 | . 14 14 14 14 9 9 9 9 6 6 5 5 5 5 5 5 5 4 5 . Processor 8 | . . . . . 7 9 9 9 6 8 11 5 11 11 11 13 10 9 7 19 Protection 10 | . 7 12 . 8 19 23 18 18 13 8 5 12 10 11 10 10 5 4 2 2 Energy Gun 5 | . 2 . . . 1 5 6 . . . . 8 3 2 . 2 9 8 5 11 Energy Cannon 2 | . 5 11 14 14 . 1 . . . . . . . . . . . . 2 . Ballistic Gun 9 | . 15 16 14 12 3 5 6 1 6 22 19 11 23 25 25 10 11 9 4 2 Ballistic Cannon 3 | . 4 . . . 9 5 . 1 6 6 8 6 . . . . 1 7 7 2 Peak Build Rating 177 | 7 9 11 12 20 34 36 35 33 33 62 77 96 125 128 127 114 132 153 177 173 Average Rating 74 | 5 8 9 11 12 26 32 29 27 33 49 74 89 111 126 122 109 123 149 144 136 On Entrance 57 | . 7 9 10 12 13 33 35 26 33 33 62 77 81 125 127 101 114 132 151 28 Naked Turns . | . . . . . . . . . . . . . . . . . . . . . Heaviest Build 128 | 13 32 33 31 34 56 57 57 53 53 65 66 103 84 87 87 75 96 112 128 117 Greatest Support 160 | 26 26 40 10 40 20 20 10 10 10 90 140 140 160 160 160 134 140 140 150 78 Greatest Overweight (x) 7 | . 5 3 3 3 4 5 5 5 5 6 . . . . . . 1 . 7 3 Average Overweight (x) 1 | . 1 2 3 2 2 4 4 4 5 3 . . . . . . . . . . Largest Inventory Capacity 15 | 8 15 15 15 15 15 15 15 15 15 15 15 15 15 15 15 15 15 15 15 5 Average Capacity 13 | 7 11 15 15 15 15 15 15 15 15 15 15 15 15 15 15 15 15 15 14 5 Most Carried 15 | 7 15 15 15 15 15 15 15 15 15 15 15 15 15 15 15 15 15 15 15 5 Average Carried 12 | 2 10 14 14 14 14 14 14 14 15 14 14 14 14 15 14 14 14 14 11 4 Final Capacity 15 | 8 15 15 15 15 15 15 15 15 15 15 15 15 15 15 15 15 15 15 5 5 Final Carried 15 | 7 15 14 15 14 15 15 15 15 15 15 14 15 15 15 15 15 15 15 5 5 Class Distribution -------------------- 44% | Mutant 20% | Scavenger-Executioner 14% | Scavenger-Tank 5% | Scavenger-Mutant 4% | Tank 3% | Commander-Tank Dominant Class ---------------- Mutant | -10/Materials Mutant | -10/Mines Mutant | -10/Exiles Mutant | -9/Mines Mutant | -8/Materials Mutant | -8/Storage Mutant | -8/Recycling Mutant | -8/Scraptown Mutant | -6/Factory Tank | -6/DSF Tank | -5/Factory Scavenger-Tank | -5/Extension Scavenger-Tank | -5/Cetus Scavenger-Tank | -5/Archives Scavenger-Tank | -5/Hub_04(d) Scavenger-Tank | -4/Factory Scavenger-Executioner | -4/DSF Scavenger-Executioner | -3/Research Scavenger-Executioner | -2/Research Scavenger-Executioner | -1/Access Resources | -11 -10 -10 -10 -9 -8 -8 -8 -8 -6 -6 -5 -5 -5 -5 -5 -4 -4 -3 -2 -1 ----------- Run | Yrd Mat Min Exi Min Mat Sto Rec Scr Fac DSF Fac Ext Cet Arc Hub Fac DSF Res Res Acc Matter Collected 11950 | 286 623 460 . 26 1233 701 70 36 . 262 476 1516 346 102 512 . 475 485 2085 2256 Remotely 1439 | . . . . . 625 274 63 36 . 122 319 . . . . . . . . . Salvage Created 14161 | 157 798 351 . 39 1137 986 60 . . 141 570 2385 91 57 660 . 825 889 2451 2564 Parts 676 | 14 49 22 . 9 71 47 6 . . 22 25 67 8 2 34 . 33 40 83 144 Haulers Intercepted 14 | . 2 . . . 3 4 . . . . . . . . 1 . . 2 1 1 Recyclers Shooed 9 | 1 . . . . . 1 . . . . . 1 . . 1 . . 1 3 1 Parts Field Recycled . | . . . . . . . . . . . . . . . . . . . . . Retrieved Matter . | . . . . . . . . . . . . . . . . . . . . . Parts Self-Destructed . | . . . . . . . . . . . . . . . . . . . . . Prevented . | . . . . . . . . . . . . . . . . . . . . . Kills | -11 -10 -10 -10 -9 -8 -8 -8 -8 -6 -6 -5 -5 -5 -5 -5 -4 -4 -3 -2 -1 ------- Run | Yrd Mat Min Exi Min Mat Sto Rec Scr Fac DSF Fac Ext Cet Arc Hub Fac DSF Res Res Acc Combat Hostiles Destroyed 231 | . 18 8 . 6 26 11 1 . . 4 9 33 1 . 9 . 13 11 40 41 Melee 2 | . . . . . . . . . . . . . . . . . . 1 . 1 Guns 90 | . 7 4 . 2 5 2 1 . . 3 5 17 1 . 6 . 8 2 8 19 Cannons 82 | . 11 4 . . 11 2 . . . 1 4 5 . . . . . 3 24 17 AOE 48 | . . . . 4 10 7 . . . . . 7 . . 3 . 4 5 8 . Classes Destroyed 20 | 2 7 . . . 4 . . . . 2 . 3 . . . . 1 . . 1 Worker 15 | . 1 . . . 6 3 . . . . . . . . 1 . . . 1 3 Builder 9 | . . . . . 2 2 . . . . 1 . . . . . . . 2 2 Tunneler 9 | 4 . 1 . . 1 . . . . . 1 . . . . . . . 1 1 Hauler 14 | . 2 . . . 3 4 . . . . . . . . 1 . . 2 1 1 Recycler 11 | 1 1 1 . . . 4 . . . . 1 . . . . . . 1 1 1 Mechanic 3 | . 1 . . . 1 . . . . . . . . . . . . . 1 . Operator 4 | . 1 . . . . 1 . . . . . 1 . . . . . . 1 . Watcher 10 | . 1 . . . 4 . . . . . . . 1 . . . . . . 4 Swarmer 44 | . 6 5 . 6 . . . . . . . . . . . . 5 6 8 8 Cutter 7 | . . . . . . . . . . . . . . . . . . . . 7 Grunt 83 | . 12 3 . . 17 7 . . . . 4 19 . . 5 . . . 14 2 Brawler 5 | . . . . . . . . . . . . 1 . . 1 . . 1 2 . Duelist 5 | . . . . . 2 . . . . . . 1 . . . . . . 2 . Sentry 30 | . . . . . 6 4 1 . . . 4 6 . . . . . 1 1 7 Demolisher 3 | . . . . . . . . . . . . 3 . . . . . . . . Specialist 3 | . . . . . . . . . . . . . . . . . 3 . . . Hunter 21 | . . . . . 1 . . . . 2 1 . 1 . 1 . 4 3 7 1 Programmer 23 | . . . . . . . . . . 1 . . . . 1 . . . 5 16 Heavy 3 | . . . . . . . . . . 1 . . . . 1 . 1 . . . Behemoth 2 | . . . . . . . . . . . . 1 . . . . . . 1 . Thug 1 | . . . . . . . . . . . . . . 1 . . . . . . Butcher 1 | . . . . . . . . . . . . 1 . . . . . . . . Guerrilla 1 | . . . . . . . . . . . . 1 . . . . . . . . Best Kill Streak 12 | 5 4 5 . 4 11 5 1 . . 2 8 4 1 . 3 . 7 5 12 11 Combat Bots Only 10 | . 4 5 . 4 5 3 1 . . 2 6 4 1 . 3 . 7 5 10 6 Max Kills in Single Turn 4 | 1 2 1 . 2 3 3 1 . . 1 2 3 1 1 3 . 2 4 3 2 Gunslinging 1 | . 1 . . . . . . . . . . . . . . . . . . 1 Exploded 4 | . . . . 2 1 2 . . . . . 3 . . 3 . 2 4 2 . Melee 1 | . . . . . . . . . . . . . . . . . . 1 . 1 Uniques/NPCs Destroyed . | . . . . . . . . . . . . . . . . . . . . . Combat | -11 -10 -10 -10 -9 -8 -8 -8 -8 -6 -6 -5 -5 -5 -5 -5 -4 -4 -3 -2 -1 -------- Run | Yrd Mat Min Exi Min Mat Sto Rec Scr Fac DSF Fac Ext Cet Arc Hub Fac DSF Res Res Acc Hostile Shots Fired 1792 | . 87 29 . 19 119 66 2 . . 31 37 138 20 4 31 . 111 36 523 539 Missed 569 | . 26 8 . 3 33 17 1 . . 9 8 38 3 3 7 . 34 11 166 202 Intercepted 2 | . . . . . . . . . . . . . . . . . . . . 2 Hits 1223 | . 61 21 . 16 86 49 1 . . 22 29 100 17 1 24 . 77 25 357 337 Melee 32 | . . . . . 3 . . . . . . . . . . . . 1 17 11 Projectile 1191 | . 61 21 . 16 83 49 1 . . 22 29 100 17 1 24 . 77 24 340 326 AOE 13 | . . . . . . . . . . . . 8 . . . . . . . 5 Critical Strikes 56 | . . . . . 1 3 . . . . 3 3 5 . 3 . 1 1 17 19 Actively Blocked 1 | . . . . . 1 . . . . . . . . . . . . . . . Part Disruptions 1 | . . . . . . . . . . . . . . . . . . . . 1 Damage Taken 27230 | . 693 235 . 208 1500 816 16 . . 454 608 2235 620 120 1373 . 1362 601 8610 7779 Core 3640 | . 112 55 . 24 203 73 . . . 48 58 53 30 . 19 . 84 45 1223 1613 Absorbed by Shields 1150 | . . . . . . . . . . . . 172 . . . . . . . 978 Reduced by Siege Mode 101 | . . . . . . . . . . . . 11 7 . 36 . . . 47 . Redirected to Shielding 211 | . . . . . 116 . . . . . . 95 . . . . . . . . Ignored by Resistances 172 | . . . . . . . . . . . . 172 . . . . . . . . Regen/Repaired (Parts) 77 | . . . . . 77 . . . . . . . . . . . . . . . Core Remaining (%) 69 | 100 . . . 23 . . . 49 . 94 . . . . 84 . 92 96 15 . Volleys Fired 768 | 16 73 31 . 7 109 57 4 . . 9 19 72 6 4 33 . 29 19 115 165 Largest 6 | 2 2 2 . 2 2 2 2 . . 5 5 5 5 5 5 . 5 6 6 6 Hottest 397 | 60 80 100 . 80 80 123 79 . . 147 164 333 251 213 176 . 283 360 397 328 Shots Fired 1894 | 31 145 49 . 9 151 98 6 . . 45 88 277 28 16 107 . 94 61 379 310 Gun 1228 | 31 96 29 . 2 38 56 4 . . 35 58 186 28 16 103 . 90 35 195 226 Cannon 599 | . 49 20 . 2 96 40 . . . 9 30 73 . . . . . 23 173 84 Launcher 64 | . . . . 5 17 2 2 . . . . 18 . . 3 . 3 3 11 . Special 3 | . . . . . . . . . . 1 . . . . 1 . 1 . . . Kinetic 1244 | 16 110 21 . 2 124 70 1 . . 44 88 174 24 14 103 . 36 34 228 155 Thermal 459 | 15 35 20 . 2 . 1 3 . . . . 85 4 2 . . 54 24 139 75 Explosive 37 | . . . . 5 11 2 2 . . . . . . . . . 3 3 11 . Electromagnetic 151 | . . 8 . . 16 25 . . . . . 18 . . 3 . . . 1 80 Robot Hit Streak 39 | 8 9 4 . 2 8 14 2 . . 6 11 14 10 4 14 . 15 15 39 12 Robot Miss Streak 9 | 3 3 5 . 1 4 4 1 . . 5 5 9 1 4 6 . 3 2 4 6 Penetration Max 1 | . . . . . . . . . . . 1 1 1 . 1 . 1 1 1 1 Secondary Targets 13 | . 1 2 . . . . . . . . . . . . 1 . 2 . . 7 Max Gunslinging Chain 2 | . 1 1 . . . . . . . . . . . . 1 . 1 . . 2 Capacitor 15 | . . . . . . . . . . . . . . . . . . . . 15 Shots Hit Robots 1228 | 18 87 22 . 5 98 74 2 . . 32 67 164 21 8 68 . 70 38 264 190 Core Hits 725 | 8 41 11 . 8 68 39 2 . . 33 61 122 7 5 30 . 41 29 137 83 Critical Kills 22 | . . . . 1 . . . . . . 1 2 1 . 2 . 4 7 3 1 Critical Parts Destroyed 43 | . . . . . 1 . . . . . . 16 . 1 3 . 9 4 7 2 Critical Strikes 127 | . 1 . . 1 6 3 1 . . 2 1 26 1 2 5 . 13 13 26 26 Burn 8 | . . . . . . . 1 . . . . 5 . . . . . . 2 . Meltdown 1 | . . . . . . . . . . . . . . . . . . 1 . . Destroy 74 | . . . . 1 1 . . . . . 1 21 1 2 5 . 13 12 14 3 Blast 35 | . 1 . . . 5 3 . . . 2 . . . . . . . . 10 14 Corrupt 5 | . . . . . . . . . . . . . . . . . . . . 5 Sever 4 | . . . . . . . . . . . . . . . . . . . . 4 Melee Attacks 21 | . . . . . . . . . . . . . . . . . . . . 21 Impact . | . . . . . . . . . . . . . . . . . . . . . Slashing 21 | . . . . . . . . . . . . . . . . . . . . 21 Piercing . | . . . . . . . . . . . . . . . . . . . . . Sneak Attacks 1 | . . . . . . . . . . . . . . . . . . . . 1 Combat Hostiles . | . . . . . . . . . . . . . . . . . . . . . Follow-up Attacks 3 | . . . . . . . . . . . . . . . . . . . . 3 Damage Inflicted 41378 | 190 1281 358 . 332 4260 2087 29 . . 481 1506 6656 563 283 2656 . 1965 1055 9836 7840 Guns 20115 | 190 486 165 . 30 477 771 29 . . 396 1058 3756 563 283 2045 . 1626 500 3751 3989 Cannons 12927 | . 635 193 . 17 1700 753 . . . 85 448 1048 . . . . . 261 4689 3098 Explosions 7725 | . 160 . . 285 2083 563 . . . . . 1849 . . 601 . 339 287 1345 213 Melee 540 | . . . . . . . . . . . . . . . . . . . . 540 Ramming 71 | . . . . . . . . . . . . 3 . . 10 . . 7 51 . Kinetic 22237 | 67 834 124 . 30 2038 1026 14 . . 481 1506 3219 464 283 2045 . 423 250 5281 4152 Thermal 10224 | 123 447 193 . 17 39 439 15 . . . . 1714 99 . 463 . 1203 511 3137 1824 Explosive 4334 | . . . . 285 1774 188 . . . . . . . . . . 339 287 1345 116 Electromagnetic 3972 | . . 41 . . 409 434 . . . . . 1720 . . 138 . . . 22 1208 Impact . | . . . . . . . . . . . . . . . . . . . . . Slashing 540 | . . . . . . . . . . . . . . . . . . . . 540 Piercing . | . . . . . . . . . . . . . . . . . . . . . Highest Corruption 48 | . . . . . 1 1 1 . . 1 . 24 48 48 48 . . . 19 35 Average Corruption 14 | . . . . . 1 1 1 . . 1 . 7 39 48 48 . . . 13 24 Corruption Purged . | . . . . . . . . . . . . . . . . . . . . . Corruption Blocked . | . . . . . . . . . . . . . . . . . . . . . Effects 225 | . . . . . 11 10 8 . . . . 5 21 9 37 . . . 22 102 Message Errors 50 | . . . . . 3 3 2 . . . . 1 3 4 5 . . . 6 23 Matter Fused 39 | . . . . . 3 . 1 . . . . 1 4 1 8 . . . 2 19 Heat Flow Errors 21 | . . . . . 1 2 . . . . . 1 2 . 2 . . . 4 9 Energy Discharges 25 | . . . . . 3 1 2 . . . . . 4 1 4 . . . . 10 Parts Rejected 6 | . . . . . . . . . . . . . 1 . . . . . 1 4 Parts Fused 4 | . . . . . 1 1 . . . . . . . . 1 . . . 1 . Data Loss (minor) 22 | . . . . . . 2 1 . . . . . 4 . 4 . . . 4 7 Data Loss (major) 9 | . . . . . . . 1 . . . . 2 . . 2 . . . 1 3 Misfires 6 | . . . . . . . 1 . . . . . 1 . . . . . 1 3 Alerts 3 | . . . . . . 1 . . . . . . 1 . 1 . . . . . Misdirections 13 | . . . . . . . . . . . . . . 1 1 . . . . 11 Weapon Failures 27 | . . . . . . . . . . . . . 1 2 9 . . . 2 13 Overload Shots . | . . . . . . . . . . . . . . . . . . . . . Overflow Damage 838 | . 47 14 . 23 118 36 . . . . . 9 . . . . . . 100 491 Projectiles 521 | . 8 14 . . 40 35 . . . . . 8 . . . . . . 63 353 Explosions 273 | . 39 . . 23 78 1 . . . . . 1 . . . . . . 37 94 Melee 44 | . . . . . . . . . . . . . . . . . . . . 44 Knockbacks 76 | . 6 . . . 8 2 . . . 1 2 6 . . . . . . 32 19 Impact 1 | . . . . . . . . . . . . . . . . . . . 1 . Kinetic 71 | . 6 . . . 8 2 . . . 1 2 6 . . . . . . 29 17 Secondary 4 | . . . . . . . . . . . . . . . . . . . 2 2 Self-Inflicted Damage 606 | . 31 . . 77 196 48 . . . . . 33 . . . . 13 . 36 172 Shots 20 | . 1 . . 4 6 2 . . . . . 2 . . . . 1 . 1 3 Rammed 9 | . . . . . . . . . . . . 1 . . 1 . . . 7 . Targets Rammed 11 | . . . . . . . . . . . . 1 . . 1 . . 1 8 . Kicked 1 | . . . . . . . . . . . . . . . . . . . 1 . Crushed 1 | . . . . . . . . . . . . . . . . . . 1 . . Highest Temperature 469 | 20 200 216 . 24 187 255 . . . . 129 199 109 . 127 . 198 189 469 321 Average Temperature 82 | 9 48 88 . 12 51 84 . . . . 44 88 41 . 65 . 65 110 115 96 Received Heat Transfer 4158 | . 249 99 . . 531 354 . . . . 162 606 9 9 108 . 252 51 1044 684 Effects 5 | . . 1 . . . 2 . . . . . . . . . . . . 2 . Shutdowns 2 | . . . . . . . . . . . . . . . . . . . 2 . Interference 3 | . . 1 . . . 2 . . . . . . . . . . . . . . Siege Activations 9 | . . . . . . . . . . . . 3 2 . 1 . 1 . 2 . Total Turns 95 | . . . . . . . . . . . . 35 16 . 11 . 3 . 30 . Longest Duration 22 | . . . . . . . . . . . . 17 9 . 11 . 3 . 22 . Martial Activations . | . . . . . . . . . . . . . . . . . . . . . Shielding Activations . | . . . . . . . . . . . . . . . . . . . . . Robots Disrupted . | . . . . . . . . . . . . . . . . . . . . . Combat Hostiles . | . . . . . . . . . . . . . . . . . . . . . Robots Corrupted 8 | . . . . . . . . . . . . 3 . . . . . . . 5 Combat Hostiles 7 | . . . . . . . . . . . . 3 . . . . . . . 4 Parts Fried 18 | . . . . . . 2 . . . . . 8 . . 1 . . . . 7 Impact Corruptions 2 | . . . . . . . . . . . . . . . . . . . . 2 Robots Melted 3 | . . . . . . . . . . . . 1 . . . . 1 1 . . Combat Hostiles 2 | . . . . . . . . . . . . 1 . . . . 1 . . . Parts Melted 24 | . 1 . . 1 . . . . . . . 6 . . . . 9 1 5 1 Heat Transferred 14131 | 275 719 407 . 37 . 425 111 . . . . 2969 148 . 450 . 2291 629 3609 2061 Parts Sabotaged 3 | . . . . . . . . . . . . . . . . . . . 3 . Parts Stolen . | . . . . . . . . . . . . . . . . . . . . . Parts Stripped . | . . . . . . . . . . . . . . . . . . . . . Power Chain Reactions 13 | . . . . . 1 5 . . . . . 1 . . 3 . . . . 3 Alert | -11 -10 -10 -10 -9 -8 -8 -8 -8 -6 -6 -5 -5 -5 -5 -5 -4 -4 -3 -2 -1 ------- Run | Yrd Mat Min Exi Min Mat Sto Rec Scr Fac DSF Fac Ext Cet Arc Hub Fac DSF Res Res Acc Maximum Alert Level 4 | . 1 . . . 2 1 . . . . 1 3 3 2 3 2 2 2 3 4 Low Security (%) 37 | 100 94 100 . 100 70 13 100 . 100 100 74 24 . . 19 . . . . . Level 1 19 | . 5 . . . 7 86 . . . . 25 13 . 26 14 . 62 28 53 . Level 2 28 | . . . . . 21 . . . . . . 47 76 73 7 100 37 71 35 46 Level 3 11 | . . . . . . . . . . . . 14 23 . 58 . . . 10 34 Level 4 3 | . . . . . . . . . . . . . . . . . . . . 18 Level 5 . | . . . . . . . . . . . . . . . . . . . . . High Security . | . . . . . . . . . . . . . . . . . . . . . Max Security . | . . . . . . . . . . . . . . . . . . . . . Sterilizations 1 | . . . . . . . . . . . . . . . . . 1 . . . Peak Influence 1246 | 10 242 151 . 143 505 371 135 . . 103 222 968 741 444 1053 494 619 655 824 1246 Initial 533 | . . 91 . . 47 207 135 . . 3 53 93 533 265 137 494 313 348 298 441 Average 386 | 2 81 74 . 35 180 259 54 . . 39 113 451 661 394 678 472 445 505 433 805 Influence Increases 11557 | 25 616 323 . 192 1022 619 222 . 5 100 259 1894 438 209 1304 4 346 545 1350 2084 Destroy 0b10 Robot/C 5620 | . 360 240 . 120 520 220 20 . . 80 180 1060 180 80 460 . 260 220 800 820 Destroy 0b10 Robot/NC 430 | 25 35 10 . . 85 70 . . . . 15 30 10 . 25 . 10 15 40 60 Destroy Leader 1120 | . 96 50 . 20 144 68 . . . 20 50 114 10 . 104 . 30 34 132 248 Allied During Kill 1161 | . . 8 . . . . . . . . . 505 182 80 386 . . . . . Trap Triggered on 0b10 30 | . . . . . . 30 . . . . . . . . . . . . . . Successful Hack 249 | . 28 . . . 27 31 22 . 5 . . 49 . . 5 4 . 40 . 38 Select Force Hacks 270 | . 60 . . . 30 30 150 . . . . . . . . . . . . . Disable Machine 300 | . 15 . . . 15 45 15 . . . . 45 . 45 15 . . . 30 75 Anti-Garrison Action 400 | . . . . . . . . . . . . . . . 200 . . 200 . . Destroy Structure 972 | . 7 . . 22 126 50 15 . . . 14 76 56 4 94 . 46 36 273 153 Partial Spotted 105 | . . . . . . 30 . . . . . . . . . . . . 15 60 Lose Combat Pursuer 900 | . 15 15 . 30 75 45 . . . . . 15 . . 15 . . . 60 630 Influence Decreases 10400 | 25 380 546 13 69 654 762 518 52 . 2 170 1133 728 478 687 567 175 633 1145 1663 Entered New Map 3460 | . . 145 13 . 76 284 213 52 . 2 50 99 420 398 257 517 135 271 233 295 Time Decay 4800 | 25 370 391 . 59 478 458 305 . . . 110 604 198 60 230 50 . 362 452 648 Lost Part 1310 | . 10 10 . 10 100 20 . . . . 10 50 10 . 40 . 40 . 460 550 Lost Ally 680 | . . . . . . . . . . . . 380 100 20 160 . . . . 20 Purge Threat 150 | . . . . . . . . . . . . . . . . . . . . 150 Squads Dispatched 70 | . 5 . . . 3 3 . . . 1 4 6 1 . 10 1 2 3 11 20 Investigation 20 | . 4 . . . 2 1 . . . . 1 2 1 . 3 1 . 2 2 1 Extermination 11 | . . . . . . . . . . . . . . . 1 . . . 2 8 Reinforcement 19 | . 1 . . . 1 . . . . 1 1 2 . . 3 . 2 1 2 5 Assault 9 | . . . . . . . . . . . . 2 . . 1 . . . 3 3 Garrison 11 | . . . . . . 2 . . . . 2 . . . 2 . . . 2 3 Intercept . | . . . . . . . . . . . . . . . . . . . . . Searches Triggered . | . . . . . . . . . . . . . . . . . . . . . Construction Impeded 2 | . . . . . . . . . . . 1 1 . . . . . . . . Haulers Reinforced . | . . . . . . . . . . . . . . . . . . . . . Active Scanning Responses . | . . . . . . . . . . . . . . . . . . . . . Cargo Convoy Interrupts 1 | . . . . . . . . . . . . . . . . . . . 1 . Stealth | -11 -10 -10 -10 -9 -8 -8 -8 -8 -6 -6 -5 -5 -5 -5 -5 -4 -4 -3 -2 -1 --------- Run | Yrd Mat Min Exi Min Mat Sto Rec Scr Fac DSF Fac Ext Cet Arc Hub Fac DSF Res Res Acc Distress Signals 25 | . . . . . 3 1 . . . . 1 2 2 1 1 . . 5 7 2 Communications Jammed 131 | . . . . . . . . . . . . . . . . . . 3 128 . Distress Signals 124 | . . . . . . . . . . . . . . . . . . . 124 . Times Spotted 442 | . 27 13 . 8 42 20 1 . . 4 9 61 11 7 21 . 13 12 99 94 Peak Tracking Total 24 | . 3 3 . 4 8 3 1 . . 2 4 7 5 1 7 . 5 5 24 11 Tactical Retreats 30 | . 1 1 . 1 5 1 . . . . . 1 . . 1 . . . 3 16 Traps | -11 -10 -10 -10 -9 -8 -8 -8 -8 -6 -6 -5 -5 -5 -5 -5 -4 -4 -3 -2 -1 ------- Run | Yrd Mat Min Exi Min Mat Sto Rec Scr Fac DSF Fac Ext Cet Arc Hub Fac DSF Res Res Acc Traps Triggered 6 | . 3 . . . . . . . . . . . . . 1 . 1 1 . . Indirectly . | . . . . . . . . . . . . . . . . . . . . . Trap Hack Attempts . | . . . . . . . . . . . . . . . . . . . . . Triggered . | . . . . . . . . . . . . . . . . . . . . . Disarmed . | . . . . . . . . . . . . . . . . . . . . . Reprogrammed 5 | . . . . . . 5 . . . . . . . . . . . . . . Reused 3 | . . . . . . 3 . . . . . . . . . . . . . . Traps Extracted . | . . . . . . . . . . . . . . . . . . . . . Installed . | . . . . . . . . . . . . . . . . . . . . . Triggered 3 | . . . . . . 3 . . . . . . . . . . . . . . Machines | -11 -10 -10 -10 -9 -8 -8 -8 -8 -6 -6 -5 -5 -5 -5 -5 -4 -4 -3 -2 -1 ---------- Run | Yrd Mat Min Exi Min Mat Sto Rec Scr Fac DSF Fac Ext Cet Arc Hub Fac DSF Res Res Acc Machines Disabled 21 | . 1 . . . 1 3 1 . . . . 3 1 3 1 . . . 2 5 Max in Single Turn 1 | . 1 . . . 1 1 1 . . . . 1 . 1 1 . . . 1 1 Garrison Access 3 | . . . . . . . . . . . . . . . 1 . . 1 1 . Machines Repaired . | . . . . . . . . . . . . . . . . . . . . . Machines Dismantled . | . . . . . . . . . . . . . . . . . . . . . Machines Sabotaged . | . . . . . . . . . . . . . . . . . . . . . Overloaded Fab Kills . | . . . . . . . . . . . . . . . . . . . . . Hacking | -11 -10 -10 -10 -9 -8 -8 -8 -8 -6 -6 -5 -5 -5 -5 -5 -4 -4 -3 -2 -1 --------- Run | Yrd Mat Min Exi Min Mat Sto Rec Scr Fac DSF Fac Ext Cet Arc Hub Fac DSF Res Res Acc Machines Accessed 78 | . 8 . 2 . 6 14 9 . 1 . 3 11 1 . 4 3 . 5 4 7 Terminals 49 | . 6 . . . 4 11 4 . 1 . . 11 1 . 2 2 . 2 2 3 Fabricators 4 | . . . . . . . . . . . 1 . . . . 1 . 1 . 1 Repair Stations 3 | . . . . . 1 1 . . . . . . . . . . . . . 1 Recycling Units 14 | . 2 . . . 1 2 5 . . . 1 . . . . . . 1 1 1 Scanalyzers . | . . . . . . . . . . . . . . . . . . . . . Garrison Access 6 | . . . . . . . . . . . 1 . . . 2 . . 1 1 1 Total Hacks 187 | . 20 . 2 . 20 40 23 . 2 . 10 22 4 . 9 7 . 7 6 15 Successful 75 | . 9 . 2 . 13 16 12 . 1 . 3 8 . . 2 3 . 3 . 3 Failed 112 | . 11 . . . 7 24 11 . 1 . 7 14 4 . 7 4 . 4 6 12 Catastrophic 30 | . 2 . . . . 4 . . . . 2 6 3 . 2 1 . 1 3 6 Database Lockouts . | . . . . . . . . . . . . . . . . . . . . . Manual 89 | . 7 . 1 . 8 18 16 . . . 7 4 1 . 8 4 . 3 4 8 Terminals 126 | . 15 . . . 12 31 17 . 2 . . 22 4 . 5 5 . 3 3 7 Fabricators 7 | . . . . . . . . . . . 2 . . . . 2 . 1 . 2 Repair Stations 11 | . . . . . 6 3 . . . . . . . . . . . . . 2 Recycling Units 30 | . 5 . . . 2 6 6 . . . 6 . . . . . . 2 1 2 Scanalyzers . | . . . . . . . . . . . . . . . . . . . . . Garrison Access 11 | . . . . . . . . . . . 2 . . . 4 . . 1 2 2 Terminal Hacks 36 | . 4 . 2 . 4 10 2 . 1 . . 8 . . 1 2 . . . 2 Record 1 | . . . 1 . . . . . . . . . . . . . . . . . Robot Schematic 1 | . . . . . . 1 . . . . . . . . . . . . . . Prototype ID Bank 3 | . . . . . 1 . 2 . . . . . . . . . . . . . Open Door 11 | . . . . . . 4 . . . . . 7 . . . . . . . . Open DSF 2 | . . . . . . . . . 1 . . . . . . 1 . . . . Branch Access Points 1 | . 1 . . . . . . . . . . . . . . . . . . . Emergency Access Points 2 | . . . . . . . . . . . . . . . 1 1 . . . . Terminal Index 1 | . . . . . . 1 . . . . . . . . . . . . . . Unreport Threat 1 | . . . . . . . . . . . . . . . . . . . . 1 Locate Traps 4 | . . . . . 2 1 . . . . . 1 . . . . . . . . Reprogram Traps 2 | . . . . . . 2 . . . . . . . . . . . . . . Transport Status 1 | . 1 . . . . . . . . . . . . . . . . . . . Hauler Manifests 1 | . 1 . . . . . . . . . . . . . . . . . . . Registered Components 4 | . 1 . . . 1 1 . . . . . . . . . . . . . 1 Proto ID Catalog 1 | . . . 1 . . . . . . . . . . . . . . . . . Fabricator Hacks 1 | . . . . . . . . . . . . . . . . . . 1 . . Build 1 | . . . . . . . . . . . . . . . . . . 1 . . Repair Station Hacks 5 | . . . . . 4 1 . . . . . . . . . . . . . . Scan Component 4 | . . . . . 3 1 . . . . . . . . . . . . . . Repair 1 | . . . . . 1 . . . . . . . . . . . . . . . Recycling Unit Hacks 6 | . 2 . . . 1 1 1 . . . 1 . . . . . . . . . Retrieve Components 6 | . 2 . . . 1 1 1 . . . 1 . . . . . . . . . Scanalyzer . | . . . . . . . . . . . . . . . . . . . . . Garrison Access Hacks . | . . . . . . . . . . . . . . . . . . . . . Unauthorized Hacks 27 | . 3 . . . 4 4 9 . . . 2 . . . 1 1 . 2 . 1 Terminals 11 | . 1 . . . 3 2 4 . . . . . . . . 1 . . . . Track 3 | . 1 . . . 1 1 . . . . . . . . . . . . . . Botnet 5 | . . . . . . . 4 . . . . . . . . 1 . . . . Disrupt 2 | . . . . . 1 1 . . . . . . . . . . . . . . Operators 1 | . . . . . 1 . . . . . . . . . . . . . . . Fabricators . | . . . . . . . . . . . . . . . . . . . . . Repair Stations . | . . . . . . . . . . . . . . . . . . . . . Recycling Units 14 | . 2 . . . 1 2 5 . . . 2 . . . . . . 1 . 1 Monitor 1 | . . . . . . . . . . . 1 . . . . . . . . . Recyclers 3 | . . . . . . . . . . . 1 . . . . . . 1 . 1 Mask 1 | . . . . . . 1 . . . . . . . . . . . . . . Tunnel 9 | . 2 . . . 1 1 5 . . . . . . . . . . . . . Scanalyzers . | . . . . . . . . . . . . . . . . . . . . . Garrison Access 2 | . . . . . . . . . . . . . . . 1 . . 1 . . Jam 2 | . . . . . . . . . . . . . . . 1 . . 1 . . Data Cores Recovered . | . . . . . . . . . . . . . . . . . . . . . Used . | . . . . . . . . . . . . . . . . . . . . . Hacking Detections 58 | . 4 . . . 5 10 5 . 1 . 3 9 2 . 3 2 . 3 4 7 Full Trace Events 15 | . 1 . . . 1 . 4 . . . 1 2 1 . 1 1 . . 2 1 Feedback Events 3 | . . . . . 1 . . . . . . 1 . . . . . . 1 . Corruption 3 | . . . . . 1 . . . . . . 1 . . . . . . 1 . Feedback Blocked . | . . . . . . . . . . . . . . . . . . . . . Robot Schematics Acquired 1 | . . . . . . 1 . . . . . . . . . . . . . . Robots Built . | . . . . . . . . . . . . . . . . . . . . . Authchips . | . . . . . . . . . . . . . . . . . . . . . Time . | . . . . . . . . . . . . . . . . . . . . . Total Robot Build Rating . | . . . . . . . . . . . . . . . . . . . . . Part Schematics Acquired . | . . . . . . . . . . . . . . . . . . . . . Parts Built 1 | . . . . . . . . . . . . . . . . . . 1 . . Authchips . | . . . . . . . . . . . . . . . . . . . . . Time 111 | . . . . . . . . . . . . . . . . . . 111 . . Total Part Build Rating 9 | . . . . . . . . . . . . . . . . . . 9 . . Parts Repaired 1 | . . . . . 1 . . . . . . . . . . . . . . . Time 26 | . . . . . 26 . . . . . . . . . . . . . . . Parts Recycled . | . . . . . . . . . . . . . . . . . . . . . Recycled Matter . | . . . . . . . . . . . . . . . . . . . . . Retrieved Matter . | . . . . . . . . . . . . . . . . . . . . . Retrieved Components 27 | . 13 . . . 3 10 . . . . 1 . . . . . . . . . Parts Scanalyzed . | . . . . . . . . . . . . . . . . . . . . . Part Schematics Acquired . | . . . . . . . . . . . . . . . . . . . . . Parts Damaged . | . . . . . . . . . . . . . . . . . . . . . Bothacking | -11 -10 -10 -10 -9 -8 -8 -8 -8 -6 -6 -5 -5 -5 -5 -5 -4 -4 -3 -2 -1 ------------ Run | Yrd Mat Min Exi Min Mat Sto Rec Scr Fac DSF Fac Ext Cet Arc Hub Fac DSF Res Res Acc Used RIF Installer . | . . . . . . . . . . . . . . . . . . . . . Robots Hacked . | . . . . . . . . . . . . . . . . . . . . . Non-combat . | . . . . . . . . . . . . . . . . . . . . . Combat . | . . . . . . . . . . . . . . . . . . . . . Robot Hacks Applied . | . . . . . . . . . . . . . . . . . . . . . Relay Couplers Released 4 | . . . . . . . . . . . . . . . 2 . . . 2 . Machine Destruction 4 | . . . . . . . . . . . . . . . 2 . . . 2 . Fabnet Peak Effective % . | . . . . . . . . . . . . . . . . . . . . . Robots Rewired 19 | . . . . . . . . . . . . 19 . . . . . . . . Allies Hacked . | . . . . . . . . . . . . . . . . . . . . . Hacks Repelled . | . . . . . . . . . . . . . . . . . . . . . Allies | -11 -10 -10 -10 -9 -8 -8 -8 -8 -6 -6 -5 -5 -5 -5 -5 -4 -4 -3 -2 -1 -------- Run | Yrd Mat Min Exi Min Mat Sto Rec Scr Fac DSF Fac Ext Cet Arc Hub Fac DSF Res Res Acc Total Allies 35 | . . 1 . . . . . . . . . 29 5 . . . . . . . Largest Group 11 | . . 1 . . . . . . . . . 11 11 10 8 . . . . . Highest-Rated Group 646 | . . 31 . . . . . . . . . 461 646 646 576 . . . . . Highest-Rated Ally 159 | . . 31 . . . . . . . . . 159 145 96 96 . . . . . Initial Warlord ECA Mod 24 | . . . . . . . . . . . . . . . . . . 9 8 7 Total Orders 6 | . . . . . . . . . . . . . . . . . . . . 6 FOLLOW 1 | . . . . . . . . . . . . . . . . . . . . 1 EXPLORE 3 | . . . . . . . . . . . . . . . . . . . . 3 RETURN 2 | . . . . . . . . . . . . . . . . . . . . 2 Ally Attacks 325 | . . 8 . . . . . . . . . 143 77 21 76 . . . . . Total Damage 8628 | . . 143 . . . . . . . . . 3441 2099 625 2320 . . . . . Kills 57 | . . 4 . . . . . . . . . 23 9 4 17 . . . . . Allies Corrupted . | . . . . . . . . . . . . . . . . . . . . . Allies Melted 1 | . . . . . . . . . . . . 1 . . . . . . . . Intel | -11 -10 -10 -10 -9 -8 -8 -8 -8 -6 -6 -5 -5 -5 -5 -5 -4 -4 -3 -2 -1 ------- Run | Yrd Mat Min Exi Min Mat Sto Rec Scr Fac DSF Fac Ext Cet Arc Hub Fac DSF Res Res Acc Active Infowar (turns) 8098 | 7 384 101 365 141 92 . . . . 60 220 1942 418 124 495 103 409 838 1013 1386 Optics 3849 | . . . . . . . . . . 60 220 1942 418 124 495 103 76 . 411 . Sensors 2284 | . . . . . . . . . . . . . . . . . 327 563 662 732 IFF 612 | . . . . . . . . . . . . . . . . . . . . 612 Terrain 340 | . . . . . 92 . . . . . . . . . . . . . 200 48 Seismic 998 | 7 384 101 365 141 . . . . . . . . . . . . . . . . T.N.C. 1681 | . . . . . . . . . . . . . . . . 77 409 838 357 . Machine Analysis 91 | . . . . . . . . . . . . . . . . . . . 91 . Jamming 1400 | . . . . . . . . . . . . . . . 24 103 24 512 737 . Robot Analysis Total . | . . . . . . . . . . . . . . . . . . . . . Derelict Logs Recovered 2 | . . 1 . 1 . . . . . . . . . . . . . . . . Drone Launches 6 | . . . . . . . . . . . . . . . . . . . . 6 Drone Recoveries 4 | . . . . . . . . . . . . . . . . . . . . 4 Exploration | -11 -10 -10 -10 -9 -8 -8 -8 -8 -6 -6 -5 -5 -5 -5 -5 -4 -4 -3 -2 -1 ------------- Run | Yrd Mat Min Exi Min Mat Sto Rec Scr Fac DSF Fac Ext Cet Arc Hub Fac DSF Res Res Acc Turns Passed 15383 | 114 880 1043 365 351 1232 1144 768 1184 55 203 220 1942 418 124 495 103 409 838 1123 2372 Spaces Moved 9490 | 61 551 694 291 206 680 603 520 827 36 86 90 850 203 63 219 60 167 485 477 2321 Core 137 | 8 29 . . . . . . . . . . . . . . . . . 50 50 Treads 2544 | . . 3 . 16 3 . . . . 33 90 850 203 63 219 60 167 485 352 . Legs 33 | . . . . . . . . . . . . . . . . . . . 33 . Wheels 4505 | 53 522 691 291 190 677 603 520 827 36 53 . . . . . . . . 42 . Hover 2016 | . . . . . . . . . . . . . . . . . . . . 2016 Flight 255 | . . . . . . . . . . . . . . . . . . . . 255 Fastest Speed 6 | 50 80 110 125 110 95 110 140 140 155 155 160 160 160 160 160 166 145 145 50 6 Average Speed 119 | 84 111 122 125 127 111 145 141 142 155 166 160 160 160 160 160 166 163 145 138 62 Slowest Speed 305 | 90 300 160 125 160 240 155 155 155 155 170 160 160 160 160 166 166 241 145 305 180 Overloaded Moves 63 | . . . . . . . . . . . . . . . . . . . . 63 Propulsion Burnouts . | . . . . . . . . . . . . . . . . . . . . . Robots Hopped . | . . . . . . . . . . . . . . . . . . . . . Potential Cave-ins 3 | . . . . . . . . . . . . . . . . . . . 3 . Cave-ins Triggered . | . . . . . . . . . . . . . . . . . . . . . Exploration Rate (%) 52 | 3 93 99 71 51 61 71 82 55 2 81 4 85 59 81 35 2 93 14 15 36 Regions Visited 20 Branch Regions 10 Pre-discovered Areas 10 | . 2 . 1 . 1 1 5 . . . . . . . . . . . . . Known Exits Taken 5 | . 1 . . . 1 1 . . 1 . . . . . . 1 . . . . Unknown Exits Taken 13 | 1 . 1 1 1 . . 1 1 . . 1 1 1 1 1 . . 1 1 . Scrap Searched 4 | . . 1 . . . . . 3 . . . . . . . . . . . . Spaces Dug 51 | . . . . 5 2 12 12 . . . . . . . . . . . 5 15 Terrain Destroyed 559 | . 5 . . 29 172 43 21 . . . 7 38 2 . 46 . 24 19 100 53 Melee . | . . . . . . . . . . . . . . . . . . . . . Projectile 188 | . . . . . 31 6 . . . . 7 30 2 . 33 . . . 47 32 AOE 368 | . 5 . . 29 141 37 21 . . . . 8 . . 12 . 24 18 52 21 Terrain Rammed . | . . . . . . . . . . . . . . . . . . . . . Walls Destroyed . | . . . . . . . . . . . . . . . . . . . . . Machines Disabled . | . . . . . . . . . . . . . . . . . . . . . Actions | -11 -10 -10 -10 -9 -8 -8 -8 -8 -6 -6 -5 -5 -5 -5 -5 -4 -4 -3 -2 -1 --------- Run | Yrd Mat Min Exi Min Mat Sto Rec Scr Fac DSF Fac Ext Cet Arc Hub Fac DSF Res Res Acc Total 12177 | 91 691 838 293 284 1004 771 549 832 35 120 126 1286 283 77 286 64 247 592 741 2967 Wait 765 | 1 21 98 . 61 113 53 13 . . 1 5 38 32 3 12 . 10 37 32 235 Move 9470 | 60 550 693 290 205 679 602 519 826 35 85 89 849 202 62 218 59 166 484 476 2321 Hop . | . . . . . . . . . . . . . . . . . . . . . Pick Up 127 | 7 17 1 2 1 30 . . 3 . 3 3 7 6 . 4 2 3 5 22 11 Fast Attach 249 | 7 3 . . 2 13 21 2 . . 7 3 26 13 2 6 1 16 14 23 90 Attach 76 | . 1 1 . 2 9 1 1 2 . 1 3 3 1 . 2 1 4 2 30 12 Detach 29 | . . . . . . 2 3 . . . . 3 . . . . 1 3 5 12 Swap 163 | . 11 11 . 3 19 11 2 . . 5 . 29 5 2 3 . 4 7 14 37 Drop 286 | . 15 3 1 3 32 24 5 1 . 9 4 43 18 4 7 1 14 20 16 66 Fire 768 | 16 73 31 . 7 109 57 4 . . 9 19 72 6 4 33 . 29 19 115 165 Melee 18 | . . . . . . . . . . . . . . . . . . . . 18 Ram 1 | . . . . . . . . . . . . . . . . . . . 1 . Kick 1 | . . . . . . . . . . . . . . . . . . . 1 . Crush 9 | . . . . . . . . . . . . 1 . . 1 . . 1 6 . Escape Stasis . | . . . . . . . . . . . . . . . . . . . . . Rewire 215 | . . . . . . . . . . . . 215 . . . . . . . . Trap . | . . . . . . . . . . . . . . . . . . . . . Miscellaneous . | . . . . . . . . . . . . . . . . . . . . . Route ------- -11/Scrapyard -10/Materials (discovered 5 exits: [*Mat x3] / *Min x2) -10/Mines (discovered 4 exits: [*Mat x2] / *Exi / [*Sub]) -10/Exiles (discovered 2 exits: [*Min x2]) -9/Mines -8/Materials (discovered 3 exits: [*Fac] / *Sto x2) -8/Storage -8/Recycling (discovered 2 exits: *Fac / *Scr) -8/Scraptown -6/Factory -6/DSF -5/Factory -5/Extension (discovered 2 exits: *Fac / *Cet) -5/Cetus (discovered 2 exits: *Fac / [*Arc]) -5/Archives (discovered 2 exits: *Hub x2) -5/Hub_04(d) (discovered 2 exits: *Fac x2) -4/Factory -4/DSF -3/Research -2/Research -1/Access History --------- Turn | Location | Event 8 | -11/Scrapyard | Discovered new exit (range 16) 115 | -11/Scrapyard | Entered Materials 115 | -10/Materials | Discovered new exit (range 14) 253 | -10/Materials | Discovered new exit (range 16) 300 | -10/Materials | Build established: Mutant 390 | -10/Materials | Discovered new exit (range 10) 460 | -10/Materials | Discovered new exit (range 14) 540 | -10/Materials | Identified exit to Mines 706 | -10/Materials | Discovered new exit (range 15) 995 | -10/Materials | Entered Mines 1050 | -10/Mines | YI-UF0 nonchalantly dropped a Grenade Launcher on the ground 1067 | -10/Mines | Discovered new exit (range 14) 1161 | -10/Mines | Learned location of 1 exit from Materials 1319 | -10/Mines | Received a Mining Laser from a helpful Derelict 1625 | -10/Mines | Core integrity fell below 50% 1745 | -10/Mines | Discovered new exit (range 6) 1786 | -10/Mines | Discovered new exit (range 5) 2031 | -10/Mines | Deemed a non-threat by the Exiles lab entrance 2032 | -10/Mines | Discovered new exit (range 5) 2038 | -10/Mines | Entered Exiles 2055 | -10/Exiles | Discovered new exit (range 15) 2070 | -10/Exiles | Met 8R-AWN 2091 | -10/Exiles | Met EX-HEX 2125 | -10/Exiles | Met EX-BIN 2140 | -10/Exiles | Aligned with FarCom system 2141 | -10/Exiles | Given EX-Vault access code 2171 | -10/Exiles | Opened EX-Vault 2177 | -10/Exiles | Found Modified TNC 2183 | -10/Exiles | Found Chronowheel 2208 | -10/Exiles | Warned to stay clear of 0b10 Research branches 2250 | -10/Exiles | Met EX-DEC 2261 | -10/Exiles | Learned location of Zion (-6) 2390 | -10/Exiles | Discovered new exit (range 14) 2403 | -10/Exiles | Stole two prototypes: Modified TNC, Chronowheel 2403 | -10/Exiles | Entered Mines 2541 | -9/Mines | Found a damaged Exp. Sensor Array with a note attached 2544 | -9/Mines | Found Prototype Device 2544 | -9/Mines | Identified Exp. Sensor Array 2742 | -9/Mines | Discovered new exit (range 11) 2754 | -9/Mines | Entered Materials 2754 | -8/Materials | Evolved 4 slots: Utility x4 2755 | -8/Materials | Identified exit to Storage 2796 | -8/Materials | Repaired Lgt. Armor Plating 2966 | -8/Materials | Lost 7 parts (1p2n2u2w) 3122 | -8/Materials | Lost 3 parts (1n2w) 3969 | -8/Materials | Discovered new exit (range 8) 3981 | -8/Materials | Discovered exit to Storage (range 4) 3986 | -8/Materials | Entered Storage 3987 | -8/Storage | Identified exit to Recycling 3988 | -8/Storage | FarCom data flow suspended 4362 | -8/Storage | Garrison activated, responded to threat 4704 | -8/Storage | Garrison activated, responded to threat 4884 | -8/Storage | Core integrity fell below 50% 4890 | -8/Storage | Met 01-MTF 5130 | -8/Storage | Entered Recycling 5130 | -8/Recycling | Accompanied by 2 allies (01-MTF) 5180 | -8/Recycling | Scanned before Scraplab entrance 5219 | -8/Recycling | Entered Scraplab 5230 | -8/Recycling | Discovered new exit (range 2) 5560 | -8/Recycling | Discovered new exit (range 16) 5898 | -8/Recycling | Entered Scraptown 5898 | -8/Scraptown | System corruption cleaned by C-Scrubber 6160 | -8/Scraptown | Discovered new exit (range 11) 6309 | -8/Scraptown | Visited Comm Corps 6367 | -8/Scraptown | Turned away by UFD registrar 6380 | -8/Scraptown | Visited Symbiants 6415 | -8/Scraptown | Visited The Evicted 6433 | -8/Scraptown | Visited Shadow of the Wyrm 6465 | -8/Scraptown | Visited Red Mages 6584 | -8/Scraptown | Visited Cyclists 6762 | -8/Scraptown | Visited Awakened 7082 | -8/Scraptown | Entered Factory 7082 | -6/Factory | Evolved 4 slots: Propulsion x1, Weapon x3 7137 | -6/Factory | Identified exit to DSF 7137 | -6/Factory | Entered DSF 7214 | -6/DSF | Additional patrols routed to DSF 7317 | -6/DSF | Discovered new exit (range 15) 7340 | -6/DSF | Entered Factory 7340 | -5/Factory | Evolved 2 slots: Propulsion x1, Utility x1 7391 | -5/Factory | Garrison activated, responded to threat 7532 | -5/Factory | Discovered new exit (range 18) 7560 | -5/Factory | Entered Extension 7577 | -5/Extension | Disrupted transfer network 7581 | -5/Extension | Build established: Tank 7627 | -5/Extension | Found Hvy. Reactive Plating 7841 | -5/Extension | Lost 3 parts (1u2w) 8108 | -5/Extension | Rescued a captive Derelict 8164 | -5/Extension | Rescued A7 8169 | -5/Extension | Lost 4 allies 8186 | -5/Extension | Rescued a captive Derelict 8188 | -5/Extension | Rescued a captive Derelict 8460 | -5/Extension | First assault squad dispatched 8672 | -5/Extension | Build established: Commander-Tank 8732 | -5/Extension | Lost 6 allies 8797 | -5/Extension | Spotted B-75 Beast 8806 | -5/Extension | Allies destroyed B-75 Beast 8812 | -5/Extension | Spotted B-75 Beast 8821 | -5/Extension | Destroyed B-75 Beast 8988 | -5/Extension | Build established: Scavenger-Tank 9095 | -5/Extension | Rescued a captive Derelict 9168 | -5/Extension | Rescued a captive Derelict 9277 | -5/Extension | Rescued a captive Derelict 9277 | -5/Extension | Rescued a captive Derelict 9359 | -5/Extension | Lost 3 allies 9413 | -5/Extension | Lost 3 allies 9415 | -5/Extension | Rescued a captive Derelict 9417 | -5/Extension | Rescued a captive Derelict 9434 | -5/Extension | System corruption reached 10% 9468 | -5/Extension | Discovered new exit (range 10) 9470 | -5/Extension | Discovered new exit (range 6) 9502 | -5/Extension | Entered Cetus 9502 | -5/Cetus | Accompanied by 10 allies (A7) 9507 | -5/Cetus | Acquired a Cetus Manufacturing Module code from A7 9522 | -5/Cetus | Spotted Cetus Guard 9522 | -5/Cetus | Spotted Cetus Guard 9523 | -5/Cetus | Spotted Cetus Guard 9523 | -5/Cetus | Spotted Cetus Guard 9535 | -5/Cetus | Allies destroyed Cetus Guard 9536 | -5/Cetus | Allies destroyed Cetus Guard 9537 | -5/Cetus | Allies destroyed Cetus Guard 9544 | -5/Cetus | Allies destroyed Cetus Guard 9574 | -5/Cetus | System corruption reached 30% 9654 | -5/Cetus | Started Cetus Manufacturing Module 9676 | -5/Cetus | Discovered new exit (range 19) 9679 | -5/Cetus | Manufactured an Enhanced Grunt 9704 | -5/Cetus | Manufactured an Enhanced Grunt 9723 | -5/Cetus | Spotted Cetus Guard 9723 | -5/Cetus | Spotted Cetus Guard 9726 | -5/Cetus | Spotted Cetus Guard 9729 | -5/Cetus | Manufactured an Enhanced Grunt 9734 | -5/Cetus | Allies destroyed Cetus Guard 9734 | -5/Cetus | Spotted Cetus Guard 9736 | -5/Cetus | Allies destroyed Cetus Guard 9739 | -5/Cetus | Allies destroyed Cetus Guard 9744 | -5/Cetus | Extracted ID and sensor layout for unrecognized location from A7's data core 9748 | -5/Cetus | Allies destroyed Cetus Guard 9749 | -5/Cetus | Discovered new exit (range 20) 9754 | -5/Cetus | Manufactured an Enhanced Grunt 9763 | -5/Cetus | Met Revision 17 9772 | -5/Cetus | Lost 4 allies 9779 | -5/Cetus | Manufactured an Enhanced Grunt 9920 | -5/Cetus | Entered Archives 9920 | -5/Archives | Accompanied by 10 allies 9972 | -5/Archives | Discovered new exit (range 20) 9995 | -5/Archives | Discovered new exit (range 20) 10044 | -5/Archives | Entered Hub_04(d) 10044 | -5/Hub_04(d) | Accompanied by 8 allies 10127 | -5/Hub_04(d) | Discovered new exit (range 18) 10344 | -5/Hub_04(d) | First assault squad dispatched 10359 | -5/Hub_04(d) | Garrison activated, responded to threat 10396 | -5/Hub_04(d) | Lost 7 allies 10420 | -5/Hub_04(d) | Discovered new exit (range 16) 10496 | -5/Hub_04(d) | Lost 3 parts (3w) 10539 | -5/Hub_04(d) | Entered Factory 10539 | -4/Factory | Evolved 2 slots: Utility x1, Weapon x1 10642 | -4/Factory | Identified exit to DSF 10642 | -4/Factory | Entered DSF 10705 | -4/DSF | Additional patrols routed to DSF 10749 | -4/DSF | Lost 3 parts (2u1w) 10910 | -4/DSF | Sterilization system engaged 10923 | -4/DSF | Discovered new exit (range 15) 10930 | -4/DSF | Ambient heat levels rising (+10) 10930 | -4/DSF | Destroyed 7 combat bots 10945 | -4/DSF | Ambient heat levels rising (+10) 10960 | -4/DSF | Ambient heat levels rising (+10) 10975 | -4/DSF | Ambient heat levels rising (+10) 10983 | -4/DSF | Build established: Scavenger-Executioner 10990 | -4/DSF | Ambient heat levels rising (+10) 11005 | -4/DSF | Ambient heat levels rising (+10) 11020 | -4/DSF | Ambient heat levels rising (+10) 11035 | -4/DSF | Ambient heat levels rising (+10) 11050 | -4/DSF | Ambient heat levels rising (+10) 11051 | -4/DSF | Entered Research 11051 | -3/Research | Evolved 2 slots: Utility x2 11251 | -3/Research | Revision forces began assault on 0b10 11259 | -3/Research | Met up with Revision 17++ 11409 | -3/Research | Fabricated Exp. Transmission Jammer (x1) 11751 | -3/Research | Research terminal network offline 11769 | -3/Research | Discovered new exit (range 9) 11889 | -3/Research | Entered another Research area 11889 | -2/Research | Evolved 2 slots: Power x1, Utility x1 12101 | -2/Research | Spotted B-90 Cyclops 12118 | -2/Research | Specialist reinforcements revealed to be Infiltrators 12126 | -2/Research | Garrison activated, responded to threat 12128 | -2/Research | Destroyed B-90 Cyclops 12151 | -2/Research | Lost 3 parts (3w) 12511 | -2/Research | Garrison activated, responded to threat 12662 | -2/Research | System corruption reached 10% 12697 | -2/Research | Lost 21 parts (3p5n8u5w) 12731 | -2/Research | Destroyed 10 combat bots 12732 | -2/Research | Lost 3 parts (1n2w) 12787 | -2/Research | Lost 4 parts (2u2w) 12889 | -2/Research | First assault squad dispatched 12904 | -2/Research | Discovered new exit (range 16) 12963 | -2/Research | Spotted B-90 Cyclops 12965 | -2/Research | Spotted Striker 12966 | -2/Research | Cargo convoy interrupted 12981 | -2/Research | Core integrity fell below 50% 12984 | -2/Research | Activated Chronowheel 13012 | -2/Research | Core integrity fell below 20% 13012 | -2/Research | Entered Access 13012 | -1/Access | Evolved 2 slots: Propulsion x2 13042 | -1/Access | Lost 14 parts (1p5n6u2w) 13170 | -1/Access | Found Powered Armor 13172 | -1/Access | Found Powered Armor 13464 | -1/Access | Lost 3 parts (1p1n1u) 13512 | -1/Access | First assault squad dispatched 13809 | -1/Access | Found Powered Armor 13812 | -1/Access | Found Powered Armor 13931 | -1/Access | System corruption reached 10% 13962 | -1/Access | Garrison activated, responded to threat 14688 | -1/Access | Lost 5 parts (2n1u2w) 14922 | -1/Access | System corruption reached 30% 14949 | -1/Access | Lost 7 parts (2n3u2w) 15135 | -1/Access | Build established: Scavenger-Gladiator 15198 | -1/Access | Core integrity fell below 50% 15212 | -1/Access | Found Quantum Capacitor 15231 | -1/Access | Lost 15 parts (1p4n5u5w) 15369 | -1/Access | Core integrity fell below 20% 15384 | -1/Access | Destroyed by G-73 Enforcer with Heavy Laser Last Messages --------------- 15346_ Destroyed Hvy. Laser. 15350_ G-73 Enforcer destroyed. 15353_ Adv. Surge Thruster destroyed. 15355_ Destroyed Hvy. Laser. 15356_ System corrupted: Component data lost. 15360_ Tesla Rifle destroyed. 15361_ Critical hit (Burn: +37). 15367_ Mic. Antimatter Reactor destroyed. 15369_ Molecular Scythe follow-up attack on G-73 Enforcer. 15370_ Imp. Terrain Scanner destroyed. 15372_ Lgt. Particle Reactor destroyed. 15373_ Dropped Quantum Capacitor. 15373_ Adv. Heat Sink destroyed. 15373_ Imp. Melee Analysis Suite destroyed. 15375_ Acquired Corrupted Med. Treads. 15375_ Integrated Corrupted Med. Treads (+1). 15376_ System corrupted: Matter fused (-5). 15384_ Wave Collapse Detector explodes. 15384_ Med. Treads destroyed. Map ----- +----------------------------------------------------+ | ??????????????# ########## ###########?????? | | ??????????????# ##########/####????????????? | | ??????????????# # #????????????? | | ??????????????# # *#????????????? | | ??????????????# # "" [ #????????????? | | ??????????????# # "" #????????????? | | ??????????????# # "" #????????????? | | ########???#??# # S #????????????? | | #?#????# # "" #????????????? | | #??????# # "" #????????????? | | #??????# + "" #????????????? | | """" "#??????# # #????????????? | | """" "#??????# # #????????????? | | """" "######## ########################???? | | """" T# ????? | | """" "# #?????? | | """" "# #?????? | | "# #?????? | | # #?????? | | # ##??#?? | | ####+### =! #?????? | | # [ # # ### #######+########?? | | # # # !%"""T""" # | | # # !p """ """ # | | # # ![ g [%! # | | # # @ !/g ![ | | # # ! ! # | | # # # | | ################ # # | | ???????????????# = g # | | ???????????????# ] [ # # | | ???????????????################################### | | | | | | | | | | | | | | | | | | | | | | | | | | | | | | | | | | | | | +----------------------------------------------------+ Best States ------------- Heat Dissipation 201 Coolant Potential 100 Energy Generation 46 Energy Capacity 1190 Matter Stores 300 Matter Capacity 300 Sight Range 20 Robot Scan Range 20 Terrain Scan Range 16 Terrain Scan Density 10 Jamming Range 22 Power Amplification 30 Base Temperature (-) 200 Armor Coverage 900 Resistance: KI 40 Resistance: EX 25 Core Shielding 30 Propulsion Shielding 66 Point Defense Rating 240 Weapon Cycling 30 Evasion (%) 70 Targeting Accuracy 28 Melee Accuracy 6 Target Analysis 12 Core Analysis 6 Recoil Reduction 4 Matter Filtering 30 Kinecelleration 40 Offensive Hacking 12 Defensive Hacking 24 Item Schematics ----------------- None Robot Schematics ------------------ M-14 Sweeper | -8/Storage | Hacked Fabricated ------------ Exp. Transmission Jammer | x1 | -3/Research | Preloaded Repaired ---------- Lgt. Armor Plating | 14% | -8/Materials Alien Tech Used ----------------- None Achievements -------------- No Explosion For You Challenges ------------ None Game ------ Seed ScatterArmorStorage Manual? 0 Play Time 02:58:42 Cumulative 253.1 hours Start 2025.06.09 @ 19:18:02 End 2025.06.10 @ 19:03:05 Sessions 3 Manual Loads 0 Difficulty Rogue Special Mode None Game No. 241 Rogue 241 Adventurer 0 Explorer 0 Win Type - Total 1 Types 1/0/0/0/0/0/0/0/0/0 Lore% 75 Gallery% 76 Achievement% 68 Wizard Run 0 Options --------- Layout 1 ASCII 0 Keyboard 0 Movement Numpad Keybinds 0 Fullscreen 1 Font 24/Smallcaps Map View 50x35 Zoom Use 0% Tactical HUD 1 Map Filters NONE Filters NONE Steam 1 RUN: fb80d121-6d45-4e40-8c8a-308abfc8e50d